bitfinex-derivatives/quotes_ETHF0:USTF0_20220106
["timestamp","ask_amount","ask_price","bid_price","bid_amount"]
[1641443959406,4.686996,3413.8,3413.4,2.00479]
[1641443960006,4.686996,3413.8,3413.5,0.132394]
[1641443960210,1.35081407,3414.0,3413.6,0.229991]
[1641443960610,0.8285833,3414.0,3413.7,1.632394]
[1641443960809,2.42767116,3414.2,3413.7,1.632394]
[1641443961109,2.42767116,3414.2,3413.7,0.83238999]
[1641443961411,2.42767116,3414.2,3413.8,1.46413099]
[1641443961812,2.42767116,3414.2,3413.7,0.96478399]
[1641443962010,2.42767116,3414.2,3413.7,4.43371355]
[1641443962210,2.42767116,3414.2,3413.7,2.96957399]
[1641443962412,3.16385745,3414.4,3413.8,0.57762521]
[1641443962612,0.132394,3414.3,3413.8,0.57762521]
[1641443963411,2.00479,3414.5,3413.8,0.57762521]
[1641443963614,2.137184,3414.5,3413.8,0.57762521]
[1641443964113,1.5,3414.3,3413.8,0.57762521]
[1641443964312,3.637184,3414.5,3413.8,0.57762521]
[1641443964513,1.90079557,3414.3,3413.8,0.57762521]
[1641443964712,0.132394,3414.2,3413.8,0.57762521]
[1641443965517,1.5,3414.1,3413.8,0.57762521]
[1641443965915,0.132394,3414.2,3413.8,0.57762521]
[1641443966218,1.632394,3414.2,3413.8,0.57762521]
[1641443966417,0.132394,3414.2,3413.8,0.57762521]
[1641443966616,0.132394,3414.2,3413.7,0.96478399]
[1641443966817,1.5,3413.8,3413.7,0.96478399]
[1641443967018,1.709003,3413.8,3413.0,1.6565068]
[1641443967218,1.5,3413.1,3413.0,1.6565068]
[1641443967418,1.632394,3413.1,3413.0,1.6565068]
[1641443967823,1.709003,3413.1,3412.8,1.6565068]
[1641443968020,4.00958,3412.9,3412.8,1.6565068]
[1641443968319,4.00958,3412.9,3412.8,1.8864978]
[1641443968719,1.90079557,3413.9,3412.8,1.8864978]
[1641443968918,1.90079557,3413.9,3412.9,1.22694965]
[1641443969522,2.42767116,3413.7,3413.1,1.46439471]
[1641443969926,1.90079557,3413.4,3413.1,1.46439471]
[1641443970125,9.557e-05,3413.4,3413.3,2.00479]
[1641443970328,3.16385745,3413.9,3413.3,2.00479]
[1641443970925,5.95961181,3414.2,3413.3,2.00479]
[1641443970926,2.00479,3414.2,3413.4,0.79657488]
[1641443971326,2.00479,3414.2,3413.4,2.26084308]
[1641443972026,2.00479,3414.2,3413.8,0.99400711]
[1641443972831,2.00479,3414.2,3413.9,0.88519094]
[1641443973031,3.16385745,3414.9,3414.0,0.229991]
[1641443973329,3.16385745,3414.9,3414.8,1.46358884]
[1641443973528,5.745e-05,3414.9,3414.8,1.46358884]
[1641443973727,5.745e-05,3414.9,3414.8,1.69357984]
[1641443973927,5.745e-05,3414.9,3414.8,2.45581137]
[1641443974530,1.576609,3414.9,3414.8,0.76223153]
[1641443974730,3.50484745,3415.4,3414.8,0.76223153]
[1641443975130,3.63724145,3415.4,3414.8,0.76223153]
[1641443975334,2.13724145,3415.4,3414.8,0.76223153]
[1641443975532,12.43,3415.3,3414.6,2.00479]
[1641443975731,1.5,3415.1,3414.6,2.00479]
[1641443975932,12.43,3415.3,3414.6,2.00479]
[1641443976131,2.00479,3415.4,3414.3,1.36651924]
[1641443976132,1.5,3414.8,3414.5,0.99400711]
[1641443976335,1.5,3414.6,3414.5,0.99400711]
[1641443976533,13.93,3414.6,3414.5,0.99400711]
[1641443976733,18.748223,3414.6,3414.5,0.99400711]
[1641443976932,17.248223,3414.6,3414.5,0.99400711]
[1641443977132,17.324832,3414.6,3414.5,0.99400711]
[1641443977534,18.824832,3414.6,3413.9,1.6565068]
[1641443977738,1.5,3414.0,3413.9,1.6565068]
[1641443977940,1.632394,3414.0,3413.8,0.99400325]
[1641443978136,2.00479,3413.9,3413.8,0.99400325]
[1641443978535,2.00479,3413.9,3413.8,1.22399425]
[1641443978935,2.00479,3413.9,3413.8,0.229991]
[1641443979135,0.56876548,3413.9,3413.8,0.229991]
[1641443979535,6.548e-05,3413.9,3413.8,0.229991]
[1641443979737,6.548e-05,3413.9,3413.8,1.69402124]
[1641443979937,6.548e-05,3413.9,3413.8,0.229991]
[1641443980139,2.37787326,3414.3,3413.8,2.234781]
[1641443980335,5.95961181,3414.8,3413.8,2.234781]
[1641443980336,1.90339366,3414.7,3414.2,1.46391665]
[1641443980738,5.0,3414.6,3414.5,5.0]
[1641443981139,10.0,3414.6,3414.5,10.0]
[1641443981336,10.076609,3414.6,3414.5,10.0]
[1641443981536,24.006609,3414.6,3414.5,10.0]
[1641443981740,0.132394,3414.5,3413.6,1.6565068]
[1641443981936,0.132394,3414.5,3413.4,1.98782171]
[1641443981937,1.5,3413.7,3413.3,0.82817911]
[1641443982136,1.5,3413.4,3413.3,0.82817911]
[1641443982337,1.709003,3413.4,3413.3,0.82817911]
[1641443983639,1.576609,3413.4,3412.7,4.55612926]
[1641443983838,1.5,3412.8,3412.6,1.38282685]
[1641443984039,0.82817911,3413.5,3412.7,1.46443974]
[1641443984443,0.132394,3413.4,3412.6,3.38761685]
[1641443984639,1.5,3412.7,3411.8,3.31303619]
[1641443984841,1.5,3413.2,3411.8,3.31303619]
[1641443985043,0.132394,3413.1,3411.8,3.31303619]
[1641443985240,0.132394,3413.1,3411.8,1.46498467]
[1641443985440,1.5,3412.7,3411.7,3.31303619]
[1641443985639,0.132394,3412.7,3411.7,3.31303619]
[1641443985842,0.132394,3412.7,3412.5,2.234781]
[1641443986041,3.50479,3413.2,3412.5,2.234781]
[1641443986240,2.137184,3413.2,3412.5,2.234781]
[1641443986441,1.5,3413.1,3412.5,2.234781]
[1641443986643,2.00479,3413.2,3412.5,2.234781]
[1641443986842,1.2660993,3412.7,3412.5,2.234781]
[1641443987241,9.93e-05,3412.7,3411.6,12.43]
[1641443987442,3.90818366,3413.2,3412.0,9.59916695]
[1641443987842,2.37787326,3413.4,3412.0,9.59916695]
[1641443988044,2.37787326,3413.4,3411.7,4.0]
[1641443988045,1.89985681,3413.5,3412.8,2.00479]
[1641443988242,5.17711277,3414.0,3412.8,11.60395695]
[1641443988444,5.17711277,3414.0,3412.8,2.00479]
[1641443988843,5.17711277,3414.0,3412.9,1.11574932]
[1641443989043,1.5,3413.7,3412.9,1.11574932]
[1641443989246,1.5,3413.3,3412.9,1.11574932]
[1641443989647,1.5,3413.3,3412.5,2.00479]
[1641443989843,1.5,3413.3,3412.6,1.25850381]
[1641443990043,12.43,3413.9,3412.6,1.25850381]
[1641443990244,1.5,3413.0,3412.6,1.25850381]
[1641443992746,1.08389,3413.2,3412.6,1.25850381]
[1641443993945,3.17232277,3413.6,3412.6,1.25850381]
[1641443994145,3.17232277,3413.6,3413.0,3.50479]
[1641443994446,3.17232277,3413.6,3413.0,2.00479]
[1641443994645,3.30471677,3413.6,3413.0,2.00479]
[1641443995246,0.132394,3413.6,3413.0,2.00479]
[1641443995646,3.17232277,3413.8,3413.0,2.00479]
[1641443996050,0.132394,3413.7,3413.0,2.00479]
[1641443996247,2.00479,3413.5,3413.0,2.00479]
[1641443997147,2.5023547,3413.7,3413.0,2.00479]
[1641443997347,2.3699607,3413.7,3413.0,2.00479]
[1641443997549,1.89641966,3413.6,3413.0,2.00479]
[1641443998148,2.02881366,3413.6,3413.0,2.00479]
[1641443998750,1.26399235,3413.1,3413.0,2.99907827]
[1641443999147,9.235e-05,3413.1,3413.0,2.99907827]
[1641444000553,2.00479,3413.8,3413.0,2.99907827]
[1641444000554,2.3699607,3413.8,3413.0,3.62051553]
[1641444000753,2.3699607,3413.8,3413.0,1.61572553]
[1641444002151,2.3699607,3413.8,3413.0,3.62051553]
[1641444002152,4.3747507,3413.8,3413.0,3.62051553]
[1641444002353,4.3747507,3413.8,3413.1,0.99428827]
[1641444002354,2.00479,3413.8,3413.1,0.99428827]
[1641444002554,2.85748958,3414.0,3413.2,1.5]
[1641444002754,2.85748958,3414.0,3413.5,1.5]
[1641444002955,3.95482181,3414.5,3413.5,2.96403881]
[1641444003953,3.95482181,3414.5,3413.6,1.29978707]
[1641444004155,3.95482181,3414.5,3414.1,2.00479]
[1641444004355,8.30630921,3414.7,3414.1,2.00479]
[1641444004654,3.15875393,3414.5,3414.1,2.00479]
[1641444004855,3.15875393,3414.5,3414.2,0.87426765]
[1641444005755,4.78339537,3414.7,3414.2,0.87426765]
[1641444006156,0.82857356,3414.7,3414.2,0.87426765]
[1641444006360,5.95961181,3415.3,3414.2,0.87426765]
[1641444006757,5.95961181,3415.3,3414.2,2.33798502]
[1641444006958,3.95482181,3415.3,3414.2,2.33798502]
[1641444007559,3.95482181,3415.4,3414.2,2.33798502]
[1641444007760,3.95482181,3415.4,3414.2,0.87426765]
[1641444008162,3.95482181,3415.4,3415.1,2.00479]
[1641444008365,3.95482181,3415.6,3415.2,0.94391963]
[1641444008762,4.08721581,3415.6,3415.2,0.94391963]
[1641444008966,3.95482181,3415.6,3415.2,0.94391963]
[1641444009364,0.132394,3415.5,3415.2,0.94391963]
[1641444009565,3.95482181,3415.6,3415.2,0.94391963]
[1641444009965,3.95482181,3415.6,3415.1,0.96086781]
[1641444010164,4.08721581,3415.6,3415.1,0.96086781]
[1641444010565,0.132394,3415.6,3415.1,0.96086781]
[1641444010765,3.16446294,3415.4,3415.1,0.96086781]
[1641444011367,3.16446294,3415.4,3415.2,1.08899718]
[1641444011766,3.95482181,3415.7,3415.3,1.46322049]
[1641444011967,3.95482181,3415.6,3415.3,1.46322049]
[1641444012170,2.181e-05,3415.6,3415.5,4.00958]
[1641444012768,2.00479,3416.8,3415.5,6.64955502]
[1641444013067,2.00479,3416.8,3415.9,1.17691723]
[1641444013268,0.32308277,3416.7,3416.0,1.46294863]
[1641444013467,2.00479,3416.8,3416.0,1.46294863]
[1641444013666,2.00479,3416.8,3416.1,1.17691723]
[1641444014169,4.35417571,3416.9,3416.7,2.00479]
[1641444014366,5.78695283,3417.1,3416.8,1.17691723]
[1641444014566,5.78695283,3417.1,3417.0,1.17691723]
[1641444015467,4.63018715,3417.4,3417.0,13.60691723]
[1641444015667,4.63018715,3417.4,3417.2,1.17691723]
[1641444015868,4.63018715,3417.4,3417.3,1.46239025]
[1641444016269,4.63018715,3417.4,3417.3,3.46718025]
[1641444016469,5.78773394,3418.4,3417.3,4.34762937]
[1641444016470,1.57240099,3417.8,3417.3,4.34762937]
[1641444016673,1.57240099,3417.8,3417.3,2.88523912]
[1641444016971,0.32308277,3417.6,3417.3,2.88523912]
[1641444017372,1.57240099,3417.8,3417.3,2.88523912]
[1641444017571,1.56840099,3417.8,3417.3,2.88523912]
[1641444018171,0.32308277,3417.6,3417.3,2.88523912]
[1641444018577,0.32308277,3417.4,3417.3,2.88523912]
[1641444018771,0.32308277,3417.4,3417.3,0.88044912]
[1641444020678,14.25308277,3417.4,3416.5,0.99428827]
[1641444020876,0.32308277,3416.6,3416.5,0.99428827]
[1641444021077,0.45547677,3416.6,3416.4,0.99428827]
[1641444021276,10.14986777,3417.4,3416.4,0.99428827]
[1641444021475,10.14986777,3417.4,3416.4,8.827e-05]
[1641444021678,10.14986777,3417.4,3416.2,1.32523491]
[1641444021679,1.46344961,3416.8,3416.2,1.32523491]
[1641444021876,0.132394,3416.7,3416.2,1.32523491]
[1641444022075,0.132394,3416.7,3416.2,1.26823491]
[1641444022376,4.00958,3416.3,3416.2,1.06933491]
[1641444022575,4.141974,3416.3,3416.2,0.229991]
[1641444022776,4.141974,3416.3,3415.5,0.75625588]
[1641444024077,3.4114714,3416.2,3415.5,0.75625588]
[1641444024279,2.00479,3415.6,3415.5,0.75625588]
[1641444024476,2.00479,3415.6,3415.5,0.98624688]
[1641444024777,2.00479,3415.6,3415.5,2.61864088]
[1641444025777,2.24908842,3415.6,3415.5,2.61864088]
[1641444025978,2.24908842,3415.6,3415.5,2.48624688]
[1641444026176,2.24908842,3415.6,3415.5,2.25625588]
[1641444026577,2.38148242,3415.6,3415.5,0.75625588]
[1641444026780,14.88809142,3415.6,3415.0,1.14679992]
[1641444026978,1.46400238,3415.5,3414.8,1.65714698]
[1641444027177,0.132394,3415.4,3414.8,1.65714698]
[1641444027579,0.132394,3415.4,3414.9,1.5]
[1641444027780,2.24908842,3415.6,3414.8,1.65714698]
[1641444027978,2.24908842,3415.6,3415.3,1.5]
[1641444028179,0.076609,3415.5,3414.8,1.65714698]
[1641444028380,2.00479,3415.4,3414.6,1.98784182]
[1641444028678,2.00479,3415.4,3414.7,1.47892197]
[1641444029079,0.132394,3415.3,3414.7,1.47892197]
[1641444030281,2.00479,3414.9,3414.7,1.47892197]
[1641444030481,2.00479,3414.9,3414.8,0.229991]
[1641444030981,2.00479,3414.9,3414.7,1.34652797]
[1641444031184,2.00479,3414.9,3414.7,2.84652797]
[1641444031382,2.137184,3414.9,3414.7,1.34652797]
[1641444032985,0.076609,3414.8,3414.7,1.34652797]
[1641444033188,2.137184,3414.9,3414.7,1.34652797]
[1641444033386,2.137184,3414.9,3414.8,0.229991]
[1641444033590,2.137184,3414.9,3414.7,1.34652797]
[1641444033891,0.076609,3414.8,3414.7,1.34652797]
[1641444034091,0.076609,3414.8,3413.7,3.50479]
[1641444034293,2.00479,3414.5,3413.7,3.50479]
[1641444034591,2.00479,3414.5,3413.8,1.632394]
[1641444034792,2.00479,3414.5,3414.4,2.96366167]
[1641444034990,2.00479,3414.5,3414.4,3.32604667]
[1641444035792,2.00479,3414.5,3414.4,1.862385]
[1641444035994,2.00479,3414.9,3414.4,1.18694696]
[1641444036594,2.137184,3414.9,3414.4,1.18694696]
[1641444037994,2.137184,3414.9,3414.4,0.82456196]
[1641444038795,12.43,3414.8,3413.7,2.00479]
[1641444040497,2.00479,3414.3,3413.6,1.05216822]
[1641444040694,0.132394,3414.2,3413.6,1.05216822]
[1641444041300,12.43,3414.2,3413.1,3.32228861]
[1641444041500,12.43,3414.2,3413.1,1.31749861]
[1641444041700,0.002,3413.1,3412.9,1.31770822]
[1641444041901,0.076609,3413.0,3412.9,1.31770822]
[1641444042399,4.086189,3413.0,3412.9,1.31770822]
[1641444042597,12.43,3412.9,3411.9,3.31142747]
[1641444042800,5.55144199,3413.0,3411.9,3.31142747]
[1641444042801,5.47483299,3413.0,3411.9,3.31142747]
[1641444043000,10.00958,3413.0,3412.9,1.5]
[1641444043198,8.00479,3413.0,3412.9,0.362385]
[1641444043401,3.0,3413.0,3412.9,1.41236141]
[1641444044504,3.0,3413.0,3412.9,3.41715141]
[1641444044699,3.0,3413.0,3412.9,3.41515141]
[1641444046099,4.36846623,3416.0,3412.9,3.41515141]
[1641444046100,3.8223713,3415.3,3412.9,4.87924596]
[1641444046302,3.8223713,3415.3,3414.0,3.50479]
[1641444046501,2.00479,3414.8,3414.1,0.132394]
[1641444047104,0.002,3414.6,3414.0,2.00479]
[1641444047300,0.002,3414.6,3414.1,1.17142083]
[1641444051105,0.002,3414.6,3414.0,1.632394]
[1641444052006,0.002,3414.6,3414.0,0.132394]
[1641444052205,0.002,3414.6,3414.1,0.98430773]
[1641444052605,0.002,3414.6,3414.2,0.132394]
[1641444052903,2.00479,3414.8,3414.2,0.132394]
[1641444053104,2.00479,3414.8,3414.7,1.5]
[1641444053303,2.00479,3415.1,3414.7,1.862385]
[1641444053505,4.63083251,3416.3,3415.0,1.5]
[1641444053703,4.63083251,3416.3,3415.6,1.5]
[1641444053905,3.16717298,3416.3,3415.6,1.5]
[1641444054106,2.35827675,3415.9,3415.7,0.229991]
[1641444054306,2.35827675,3415.9,3415.7,0.362385]
[1641444054508,2.35827675,3415.9,3415.8,5.50958]
[1641444055407,3.16717298,3416.2,3415.8,20.43329152]
[1641444055607,3.16717298,3416.2,3416.1,1.5]
[1641444055807,3.16717298,3416.2,3416.1,1.729991]
[1641444056011,3.16717298,3416.2,3416.1,1.862385]
[1641444056207,0.63271314,3417.2,3416.1,1.862385]
[1641444056408,0.63271314,3417.2,3416.5,1.5]
[1641444056608,0.002,3417.0,3416.5,1.632394]
[1641444056810,0.63271314,3417.2,3416.9,1.5]
[1641444057009,0.076609,3417.1,3416.5,1.46275604]
[1641444057213,0.15978315,3417.0,3416.8,1.5]
[1641444057810,0.15978315,3417.0,3416.9,0.229991]
[1641444058411,0.15978315,3417.0,3416.9,1.08772983]
[1641444058711,0.15978315,3417.0,3416.9,3.32251083]
[1641444058913,0.15978315,3417.0,3416.9,3.09251983]
[1641444059314,0.15978315,3417.6,3416.9,3.09251983]
[1641444059511,0.16178315,3417.6,3416.9,2.58892627]
[1641444059914,0.15978315,3417.6,3417.0,0.132394]
[1641444060116,0.15978315,3417.6,3417.5,1.5]
[1641444060317,0.15978315,3417.6,3417.5,1.862385]
[1641444060513,0.15978315,3417.8,3417.5,3.867175]
[1641444060712,0.15978315,3417.8,3417.7,1.5]
[1641444061113,0.15978315,3417.8,3417.7,1.729991]
[1641444061314,0.15978315,3417.8,3417.7,2.69474549]
[1641444061713,0.23639215,3417.8,3417.7,2.69474549]
[1641444061915,0.076609,3417.8,3417.7,2.69474549]
[1641444062113,0.076609,3417.8,3417.7,1.19474549]
[1641444063614,0.076609,3417.8,3416.9,2.00479]
[1641444064614,2.00479,3417.5,3417.0,1.16672427]
[1641444064815,2.00479,3417.5,3417.1,0.132394]
[1641444066316,2.00479,3417.5,3417.2,1.5]
[1641444066514,2.00479,3417.5,3417.3,0.362385]
[1641444067117,0.076609,3417.4,3417.3,0.132394]
[1641444067416,0.076609,3417.4,3417.1,1.5]
[1641444067818,1.5296,3426.4,3417.1,1.5]
[1641444068116,9.99999999,3419.2,3417.1,1.5]
[1641444068316,0.4,3423.0,3417.1,1.5]
[1641444068317,9.99999999,3418.9,3417.1,1.5]
[1641444068518,14.43479,3418.2,3417.4,2.00479]
[1641444068719,2.00479,3418.2,3417.4,2.00479]
[1641444068919,9.99999999,3418.0,3417.4,2.00479]
[1641444069120,2.00479,3418.2,3415.8,1.5]
[1641444069121,1.46325475,3417.5,3415.8,1.5]
[1641444070223,1.46325475,3417.5,3415.9,0.85910184]
[1641444070419,2.07185475,3417.5,3416.1,1.5]
[1641444070618,2.00479,3416.7,3416.1,1.5]
[1641444070823,2.00479,3416.7,3416.2,0.132394]
[1641444072523,2.00479,3416.7,3416.4,1.5]
[1641444072723,0.076609,3416.6,3416.2,0.132394]
[1641444073121,2.00479,3416.7,3416.5,1.5]
[1641444073322,2.00479,3416.7,3416.2,1.07610873]
[1641444073520,2.00479,3416.7,3416.2,0.94371473]
[1641444073723,2.00479,3416.7,3415.6,2.00479]
[1641444074021,1.46367667,3416.4,3415.2,1.5]
[1641444074622,2.00479,3415.7,3415.2,1.5]
[1641444074822,2.00479,3415.7,3415.3,0.132394]
[1641444075424,2.00479,3415.7,3415.2,1.5]
[1641444075625,2.00479,3415.7,3414.9,3.43467506]
[1641444076326,12.43,3415.6,3414.8,1.5]
[1641444076525,2.00479,3414.9,3414.8,1.5]
[1641444076725,2.081399,3414.9,3414.8,1.5]
[1641444077844,12.43,3414.8,3414.1,2.00479]
[1641444078029,12.43,3414.8,3413.2,1.31766509]
[1641444078427,13.0386,3414.8,3413.2,1.31766509]
[1641444078628,2.00479,3413.3,3413.0,1.5]
[1641444078828,2.00479,3413.5,3413.2,1.5]
[1641444079029,12.43,3415.7,3413.4,1.5]
[1641444079230,12.43,3415.5,3414.0,1.5]
[1641444079429,12.43,3415.5,3412.9,32.04706115]
[1641444079629,4.685555,3415.4,3413.8,1.5]
[1641444079830,12.43,3415.3,3413.8,1.5]
[1641444080031,4.685555,3415.4,3414.3,1.5]
[1641444080232,1.4639338,3415.8,3415.1,1.5]
[1641444080634,12.43,3415.5,3415.1,1.5]
[1641444080831,12.43,3415.5,3414.8,2.00479]
[1641444081234,12.43,3415.5,3413.9,1.42429682]
[1641444081433,12.43,3415.5,3414.0,1.5]
[1641444081634,13.0386,3415.5,3414.0,1.5]
[1641444082036,12.43,3415.5,3413.6,0.92677729]
[1641444082434,12.43,3415.5,3413.8,1.5]
[1641444082634,2.00479,3414.3,3413.8,1.5]
[1641444082834,2.00479,3414.3,3413.8,1.632394]
[1641444083434,2.00479,3414.3,3413.8,1.5]
[1641444084036,2.00479,3414.3,3414.0,1.5]
[1641444084237,2.00479,3414.3,3414.1,0.229991]
[1641444084435,2.00479,3414.3,3413.8,0.132394]
[1641444084837,2.00479,3414.3,3414.0,1.5]
[1641444085137,0.076609,3414.2,3413.8,1.632394]
[1641444085542,0.076609,3414.2,3413.6,0.92677729]
[1641444085740,12.506609,3414.2,3413.6,0.92677729]
[1641444085940,12.506609,3414.2,3413.2,7.00479]
[1641444086139,12.506609,3414.2,3413.2,7.00279]
[1641444086340,12.506609,3414.2,3413.2,4.998]
[1641444086740,2.00479,3413.3,3413.2,4.998]
[1641444086941,2.00479,3413.3,3413.2,5.227991]
[1641444087741,2.00479,3413.3,3413.2,6.860385]
[1641444088542,2.00479,3413.5,3413.2,6.860385]
[1641444088942,2.00479,3413.5,3413.4,1.5]
[1641444089143,2.00479,3413.5,3413.4,1.862385]
[1641444089342,2.00479,3413.5,3413.4,0.362385]
[1641444089743,2.081399,3413.5,3413.4,0.132394]
[1641444089944,2.00479,3413.5,3413.4,0.132394]
[1641444090244,2.00479,3414.1,3413.4,0.362385]
[1641444090646,4.00958,3414.1,3413.4,0.362385]
[1641444091243,0.47611625,3414.4,3413.4,0.362385]
[1641444091445,13.89453626,3414.8,3413.4,0.362385]
[1641444091446,12.43,3414.8,3413.4,0.362385]
[1641444092248,13.0386,3414.8,3413.6,1.5]
[1641444092447,14.50303974,3414.8,3413.6,1.5]
[1641444092647,12.43,3414.3,3413.6,3.50479]
[1641444092848,12.43,3414.3,3413.7,0.132394]
[1641444093048,2.00479,3414.4,3413.7,0.132394]
[1641444094251,31.3522,3415.4,3414.3,1.5]
[1641444094451,2.885,3417.0,3415.3,1.5]
[1641444094651,2.00479,3416.0,3415.3,1.632394]
[1641444095052,2.00479,3416.0,3415.3,1.5]
[1641444095253,14.43479,3416.0,3415.2,2.00479]
[1641444095651,14.43479,3416.0,3415.2,3.50479]
[1641444096353,14.43479,3416.0,3415.3,0.132394]
[1641444096953,14.43479,3416.0,3415.2,2.00479]
[1641444097955,1.4644376,3415.3,3413.2,1.5]
[1641444098155,9.99999999,3415.4,3413.2,1.5]
[1641444098354,12.43,3415.3,3413.2,1.5]
[1641444098755,2.00479,3414.4,3413.6,2.00479]
[1641444099355,2.00479,3414.4,3413.7,0.132394]
[1641444099756,1.59705252,3414.3,3413.6,1.598884]
[1641444099958,12.562394,3414.3,3413.6,1.598884]
[1641444100157,2.00479,3414.4,3413.8,1.5]
[1641444100358,2.00479,3414.4,3413.6,1.574884]
[1641444100558,2.00479,3414.4,3413.7,0.132394]
[1641444101163,12.43,3414.3,3413.7,0.132394]
[1641444101358,2.137184,3414.4,3413.7,0.132394]
[1641444101962,1.46469928,3414.2,3413.7,0.80460482]
[1641444102562,0.132394,3414.1,3413.7,0.80460482]
[1641444103161,0.132394,3414.1,3413.6,1.574884]
[1641444104662,0.132394,3414.1,3413.5,0.132394]
[1641444104663,12.43,3413.7,3413.2,2.00479]
[1641444104864,1.59734218,3413.6,3413.2,2.00479]
[1641444105067,0.132394,3413.6,3411.9,32.3477]
[1641444105264,0.132394,3413.6,3411.9,1.5]
[1641444105463,1.46503189,3413.4,3411.6,1.454]
[1641444105667,1.46521005,3413.0,3411.6,1.454]
[1641444105867,43.124,3413.7,3411.7,0.99012124]
[1641444106069,1.4649675,3413.6,3411.7,0.99012124]
[1641444106266,43.124,3413.7,3412.3,1.5]
[1641444106267,1.46506837,3413.3,3412.3,1.5]
[1641444106665,1.46506837,3413.3,3412.7,2.00479]
[1641444106866,0.132394,3413.2,3412.7,2.00479]
[1641444107064,0.132394,3413.2,3412.3,3.50479]
[1641444107566,1.46515424,3413.1,3412.3,3.50479]
[1641444107764,0.132394,3413.0,3412.3,3.50479]
[1641444108165,0.132394,3413.0,3412.5,1.5]
[1641444108364,0.132394,3413.0,3412.5,0.132394]
[1641444108767,12.43,3412.7,3411.7,2.00479]
[1641444109166,1.4658415,3411.8,3411.6,1.454]
[1641444109365,1.4658415,3411.8,3411.6,1.683991]
[1641444109566,1.4658415,3411.8,3411.6,1.454]
[1641444110167,0.076609,3411.7,3411.6,1.454]
[1641444110569,0.076609,3411.7,3410.9,1.454]
[1641444110869,2.00479,3411.4,3410.9,1.3957]
[1641444111269,60.6335,3412.7,3411.1,1.5]
[1641444111468,27.4374,3412.7,3411.1,1.3957]
[1641444111667,5.0,3412.8,3411.1,1.3957]
[1641444111868,2.885,3415.0,3411.2,0.92145072]
[1641444111869,12.43,3412.7,3411.2,0.92145072]
[1641444112068,1.46545269,3412.5,3411.2,0.92145072]
[1641444112268,12.43,3412.7,3411.2,0.92145072]
[1641444112469,12.43,3412.7,3411.2,2.42145072]
[1641444112675,12.43,3412.7,3412.1,2.00479]
[1641444113270,5.0,3412.8,3412.1,2.00479]
[1641444113474,5.0,3412.8,3412.1,3.50479]
[1641444113671,0.4361,3413.8,3412.1,3.50479]
[1641444113873,1.46454483,3414.6,3412.6,1.46454483]
[1641444114072,1.46454483,3414.6,3412.8,1.5]
[1641444114272,1.46454483,3414.6,3412.6,1.46454483]
[1641444114471,12.43,3414.7,3412.2,34.5664]
[1641444114671,2.00479,3414.4,3413.6,2.00479]
[1641444114971,14.43479,3414.4,3413.6,2.00479]
[1641444115170,2.00479,3414.4,3413.6,2.00479]
[1641444115373,0.132394,3414.3,3413.6,2.00479]
[1641444115973,0.132394,3414.3,3413.7,1.02375715]
[1641444116674,0.132394,3414.3,3414.0,2.00479]
[1641444116873,0.076609,3414.2,3414.0,2.00479]
[1641444117173,0.132394,3414.1,3414.0,2.00479]
[1641444117573,0.132394,3414.1,3414.0,9e-05]
[1641444117978,0.132394,3414.1,3413.6,2.00479]
[1641444118175,12.43,3413.8,3413.0,0.9120111]
[1641444118376,0.132394,3413.7,3412.0,1.46482158]
[1641444118879,2.00479,3413.1,3412.3,2.00479]
[1641444119477,12.562394,3413.0,3412.3,2.00479]
[1641444119676,0.132394,3413.0,3412.3,2.00479]
[1641444119877,2.00479,3413.1,3412.4,1.35764653]
[1641444120078,12.43,3413.0,3412.4,1.35764653]
[1641444121280,2.00479,3413.8,3412.8,1.5]
[1641444121485,1.46427677,3415.2,3413.2,1.46427677]
[1641444121682,32.1304,3415.1,3413.4,1.5]
[1641444121880,1.46427677,3415.2,3413.4,1.5]
[1641444122081,1.46427677,3415.2,3413.3,0.6086]
[1641444122482,4.686241,3415.1,3413.4,1.10966266]
[1641444122683,14.778661,3414.8,3413.5,0.98855586]
[1641444122883,2.348661,3414.8,3414.5,2.00479]
[1641444123084,2.348661,3414.8,3414.6,0.229991]
[1641444123484,6.1e-05,3414.8,3414.6,0.229991]
[1641444123783,3.97338444,3415.3,3414.6,0.229991]
[1641444123986,3.97338444,3415.3,3414.7,1.46358027]
[1641444124385,3.97338444,3415.3,3414.7,1.02546998]
[1641444124785,0.20714983,3415.0,3414.7,1.02546998]
[1641444124985,0.076609,3414.9,3414.5,2.00479]
[1641444125786,0.132394,3414.8,3413.9,0.98855586]
[1641444126286,0.132394,3414.8,3414.0,0.98855586]
[1641444126686,12.43,3414.6,3414.0,0.98855586]
[1641444126887,2.00479,3414.1,3414.0,0.98855586]
[1641444127787,2.00479,3414.5,3413.6,1.61000844]
[1641444128387,2.00479,3414.5,3413.7,1.32974378]
[1641444128889,2.00479,3414.5,3414.0,0.98855586]
[1641444129091,14.43479,3414.5,3414.0,0.98855586]
[1641444129292,14.567184,3414.5,3414.0,0.98855586]
[1641444130191,14.43479,3414.5,3413.7,5.64075473]
[1641444130392,14.43479,3414.5,3413.7,4.32308964]
[1641444130793,2.00479,3414.5,3413.7,4.32308964]
[1641444132492,2.00479,3414.5,3414.0,0.98855586]
[1641444132792,0.2071281,3414.9,3414.3,2.00479]
[1641444133392,2.3647834,3415.3,3414.3,2.00479]
[1641444133792,2.3647834,3415.3,3414.4,0.86904094]
[1641444134192,15.58304453,3415.5,3414.4,1.8575968]
[1641444134394,12.43,3415.5,3414.4,1.8575968]
[1641444134793,13.89414599,3415.5,3414.8,2.00479]
[1641444135093,0.132394,3415.4,3414.8,2.00479]
[1641444136192,12.43,3415.3,3414.8,2.00479]
[1641444136395,0.132394,3415.2,3414.3,2.00479]
[1641444136791,0.132394,3415.2,3414.2,0.98855586]
[1641444136792,12.43,3414.6,3414.2,0.98855586]
[1641444136994,0.132394,3414.5,3414.2,0.98855586]